[Event "Romanian Team Blitz Open 2022"]
[Site "Sebes"]
[Date "2022.12.04"]
[Round "4.29"]
[White "Saioc, David"]
[Black "Stefan, Romulus-Cristian"]
[Result "1-0"]
[ECO "C40"]
[WhiteElo "2026"]
[BlackElo "2097"]
[Annotator "TA"]
[PlyCount "111"]
[EventDate "2022.12.04"]
[EventType "blitz"]
[EventCountry "ROU"]
[SourceTitle "playchess.com"]
[Source "ChessBase"]
[SourceQuality "1"]
[TimeControl "180+2"]

{[%evp 9,111,-26,74,-14,25,-15,60,37,33,32,-1,-62,69,50,60,12,52,19,29,8,15,7,9,0,17,0,2,0,2,0,11,10,2,10,10,0,0,0,0,0,0,0,0,-10,175,0,0,0,32,21,33,0,200,-46,-57,-138,-157,-324,-158,-158,-163,-193,-199,-429,-409,-639,-608,-746,-741,-1196,-114,-110,-101,-126,-126,-93,-99,-133,-123,-143,-92,-244,-241,-202,-202,-233,-234,-227,0,0,911,908,1243,1162,1300,1229,1118,635,632,625,1751,610,602,588]} 1. Nf3 {[%emt 0:00:03]} f5 {[%emt 0:00:00]} 2. d3 {[%emt 0:00:01]} Nc6 {[%emt 0:00:02]} 3. e4 {[%emt 0:00:01]} e5 {[%emt 0:00:01]} 4. g3 {[%emt 0:00:02]} Nf6 {[%emt 0:00:06]} 5. Nc3 {[%emt 0:00:03]} Bc5 {[%emt 0:00:09]} (5... fxe4 $11 {keeps the balance.} 6. dxe4 Bb4) 6. Bg2 {[%emt 0:00:03] C40: Latvian and Elephant Gambits.} (6. exf5 $16 d5 7. Bh3) 6... d6 {[%emt 0:00:01]} 7. O-O {[%emt 0:00:02]} a6 {[%emt 0:00:06] [#]} ({Black should play} 7... O-O $11) 8. Be3 $146 {[%emt 0:00:30] White is slightly better.} (8. Bg5 $5 {[%cal Rf3h4]}) ({Predecessor:} 8. Nd5 fxe4 9. dxe4 Nxe4 10. Nh4 Nf6 11. Bg5 O-O 12. Nxf6+ Rxf6 13. Bd5+ Kh8 14. Qh5 Qd7 15. Be4 Rh6 16. Bxh6 gxh6 17. Qxh6 Qf7 {1-0 (17) Masip Tressera,O (2150)-Bestard Borras,M (2135) Palma de Mallorca 2022}) 8... Bxe3 {[%emt 0:00:07]} 9. fxe3 {[%emt 0:00:01]} fxe4 {[%emt 0:00:01]} 10. Nxe4 {[%emt 0:00:22]} (10. Ng5 $11) 10... O-O {[%emt 0:00:03]} (10... Nxe4 $15 11. dxe4 Qe7) 11. Nxf6+ {[%emt 0:00:05]} (11. Nfg5 $5 {[%cal Re4f6]}) 11... Rxf6 {[%emt 0:00:15]} (11... Qxf6 $2 12. Nd4 $1 {[%mdl 512]} Qe7 13. Rxf8+ (13. Nxc6 Rxf1+ 14. Qxf1 bxc6 $16) 13... Qxf8 14. Nxc6 bxc6 15. Bxc6 $16) 12. Qd2 {[%emt 0:00:11]} (12. d4 $14 {should be considered.}) 12... h6 {[%emt 0:00:07]} 13. Nh4 {[%emt 0:00:23]} Be6 {[%emt 0:00:04]} 14. Rxf6 {[%emt 0:00:02]} Qxf6 {[%emt 0:00:01]} 15. Rf1 {[%emt 0:00:02]} Qg5 {[%emt 0:00:03]} 16. a3 {[%emt 0:00:13]} Re8 {[%emt 0:00:10]} 17. Nf3 {[%emt 0:00:36][%cal Bh4f3,Bf3e1,Be1d3,Bd3f4,Bf4d5,Bd5f6,Bf6d7][%mdl 32]} (17. Be4 {seems wilder.} Rb8 18. Qf2 Ne7 19. Bg2) 17... Qh5 {[%emt 0:00:01]} 18. Ne1 {[%emt 0:00:39]} Nd8 {[%emt 0:00:17]} 19. d4 {[%emt 0:00:05]} b6 {[%emt 0:00:15]} 20. dxe5 {[%emt 0:00:06]} (20. d5 $5 {[%cal Rd5e6]} Bg4 21. Be4 $14) 20... Qxe5 {[%emt 0:00:01]} 21. Nd3 {[%emt 0:00:01]} Qb5 {[%emt 0:00:13]} 22. Qc3 {[%emt 0:00:07]} Qc4 {[%emt 0:00:08]} 23. Qd2 {[%emt 0:00:05]} Bf7 {[%emt 0:00:04]} 24. Nf4 {[%emt 0:00:02]} Qc5 {[%emt 0:00:12]} 25. Re1 {[%emt 0:00:03]} a5 {[%emt 0:00:06]} 26. Bd5 {[%emt 0:00:00]} g5 $2 {[%emt 0:00:25]} (26... Qb5 $11 {and Black is okay.}) 27. Bxf7+ $2 {[%emt 0:00:02]} ({Better is} 27. b4 $18 Qb5 28. c4) 27... Nxf7 $11 {[%emt 0:00:01]} 28. Nd5 {[%emt 0:00:02]} Re5 {[%emt 0:00:07][%cal Be8e5,Be5d5,Bd5d2,Bd2b2][%mdl 32]} 29. Nf6+ {[%emt 0:00:03]} Kg7 {[%emt 0:00:06]} 30. Nd7 {[%emt 0:00:01][%csl LRc5,LRe5]} (30. b4 {is more complex.} axb4 31. axb4 Qc4 32. Rf1) 30... Qd5 {[%emt 0:00:08]} (30... Qc6 $11 {and Black stays safe.} 31. Nxe5 Nxe5) 31. Qxd5 $2 {[%emt 0:00:04]} (31. Qc3 $18) 31... Rxd5 $18 {[%emt 0:00:02][%mdl 4096] Endgame KRN-KRN} 32. e4 {[%emt 0:00:02]} (32. Kf2 $15) 32... Rd2 $17 {[%emt 0:00:01]} 33. Rc1 $2 {[%emt 0:00:01]} (33. Rf1 $17) 33... Ne5 {[%emt 0:00:45]} (33... g4 $1 $19 {...Ng5 is the strong threat.} 34. Re1 Rxc2) 34. Nxe5 {[%emt 0:00:03]} dxe5 {[%emt 0:00:00] KR-KR} 35. c4 {[%emt 0:00:01]} Rxb2 {[%emt 0:00:00]} 36. c5 $2 {[%emt 0:00:01]} (36. Rd1) 36... b5 $19 {[%emt 0:00:00]} 37. c6 {[%emt 0:00:01]} (37. Ra1 $142) 37... Kf6 {[%emt 0:00:00]} 38. Rc5 {[%emt 0:00:01]} a4 {[%emt 0:00:00]} 39. Rd5 {[%emt 0:00:03]} Rc2 $2 {[%emt 0:00:00]} (39... b4 $19 {has better winning chances.} 40. axb4 a3) 40. Rxb5 $17 {[%emt 0:00:01]} Rxc6 {[%emt 0:00:00]} 41. Rb4 {[%emt 0:00:00]} Ra6 {[%emt 0:00:16]} 42. Kf2 c5 {[%emt 0:00:00]} 43. Rc4 {[%emt 0:00:01] [#]} Ra5 $1 {[%emt 0:00:00]} 44. Ke3 {[%emt 0:00:01]} Ke6 {[%emt 0:00:00]} 45. Kf3 $2 {[%emt 0:00:03]} (45. Kd3 $17) 45... Kd6 $19 {[%emt 0:00:00]} 46. Kg4 {[%emt 0:00:03]} Kc6 {[%emt 0:00:00]} 47. Kf5 {[%emt 0:00:01] [#]} Kb5 $1 {[%emt 0:00:00]} 48. Rc1 {[%emt 0:00:01]} Ra6 $2 {[%emt 0:00:00]} (48... Ra8 $19 {Hoping for ...Re8.} 49. Kxe5 c4) 49. Kxe5 $11 {[%emt 0:00:01] Black must now prevent Kd5.} c4 $2 {[%emt 0:00:00][%mdl 8192]} (49... Ra8 $11) 50. Kd5 $18 {[%emt 0:00:01] White is clearly winning.} Ra8 {[%emt 0:00:00]} 51. Rb1+ {[%emt 0:00:00]} (51. Rxc4 $2 {is the wrong capture.} Rd8+ 52. Ke5 Kxc4 $19) 51... Ka5 {[%emt 0:00:02]} 52. Kxc4 {[%emt 0:00:01] aiming for e5.} Rc8+ {[%emt 0:00:03]} 53. Kd4 {[%emt 0:00:02]} Rc2 {[%emt 0:00:05]} 54. e5 {[%emt 0:00:07]} Rxh2 {[%emt 0:00:02]} 55. e6 {[%emt 0:00:01]} (55. Re1 $142 Rd2+ 56. Kc4) 55... Re2 {[%emt 0:00:01]} 56. Kd5 {[%emt 0:00:01] What a bad dream for Black.   Weighted Error Value: White=0.60/Black=0.56} 1-0

[Event "Romanian Team Blitz Open 2022"]
[Site "Sebes"]
[Date "2022.12.04"]
[Round "4.30"]
[White "Arion, Ilie"]
[Black "Tariceanu, Victor"]
[Result "1-0"]
[ECO "A81"]
[WhiteElo "1924"]
[BlackElo "1720"]
[Annotator "TA"]
[PlyCount "90"]
[EventDate "2022.12.04"]
[EventType "blitz"]
[EventCountry "ROU"]
[SourceTitle "playchess.com"]
[Source "ChessBase"]
[SourceQuality "1"]
[TimeControl "180+2"]

{[%evp 13,90,31,41,10,29,20,29,25,43,13,21,-13,24,4,14,-16,-16,-154,0,-17,-20,-18,7,0,3,0,0,0,0,0,0,-293,9,10,8,5,34,4,20,0,0,0,0,0,26,0,0,0,0,0,0,0,0,0,0,0,0,0,0,0,0,0,0,0,0,0,0,0,0,0,0,0,0,0,0,0,0,0,80]} 1. g3 {[%emt 0:00:01]} f5 {[%emt 0:00:01]} 2. Bg2 {[%emt 0:00:01]} g6 {[%emt 0:00:00]} 3. d4 {[%emt 0:00:02]} Bg7 {[%emt 0:00:01]} 4. Nf3 {[%emt 0:00:01]} Nf6 {[%emt 0:00:01]} 5. O-O {[%emt 0:00:02]} d6 {[%emt 0:00:01]} 6. b3 {[%emt 0:00:03]} O-O {[%emt 0:00:02]} 7. Bb2 {[%emt 0:00:01]} c6 {[%emt 0:00:00] [#]} 8. a3 $146 {[%emt 0:00:02] A81: Dutch Defence: 2 g3.} ({Predecessor:} 8. Nbd2 a5 9. c4 Na6 10. a3 Bd7 11. Re1 Ne4 12. e3 Qc7 13. Qc2 Nxd2 14. Qxd2 e5 15. e4 f4 16. c5 Bg4 17. cxd6 Qxd6 18. dxe5 Qxd2 19. Nxd2 {0-1 (37) Keymer,V (2672)-Sadhwani,R (2622) Chess.com INT 2022}) 8... Ne4 {[%emt 0:00:01]} 9. Nbd2 {[%emt 0:00:02]} d5 {[%emt 0:00:01]} 10. c4 {[%emt 0:00:04] White has an edge.} Nd7 {[%emt 0:00:03]} 11. cxd5 {[%emt 0:00:10]} cxd5 {[%emt 0:00:01]} 12. b4 {[%emt 0:00:08]} Ndf6 {[%emt 0:00:04]} 13. Qb3 {[%emt 0:00:06]} e6 {[%emt 0:00:02]} 14. Rac1 {[%emt 0:00:07]} Bd7 {[%emt 0:00:02]} 15. Rfd1 {[%emt 0:00:07] [#]} (15. Nxe4 $11 Nxe4 16. Rc2) 15... Nd6 $2 {[%emt 0:00:10]} (15... Qe8 $1 $17 {White must now prevent ...Ba4.} 16. Rf1 Bh6) 16. Ne5 {[%emt 0:00:05]} (16. a4 $5 {[%cal Rb4b5]}) 16... Bb5 {[%emt 0:00:02]} 17. Re1 {[%emt 0:00:10]} Nfe4 {[%emt 0:00:22] Inhibits a4.} 18. Nxe4 {[%emt 0:00:02]} fxe4 {[%emt 0:00:02]} 19. a4 {[%emt 0:00:09]} Bc4 {[%emt 0:00:18]} 20. Nxc4 {[%emt 0:00:02]} Nxc4 {[%emt 0:00:02]} 21. e3 {[%emt 0:00:02]} Rc8 {[%emt 0:00:05]} 22. Bf1 $2 {[%emt 0:00:01][%mdl 8192] [#]} (22. Re2 $11 {and White stays safe.}) 22... Nd6 $2 {[%emt 0:00:02]} ({Worse is} 22... Qf6 23. Rc2 $15) ({Black should try} 22... Nd2 $19 23. Qd1 Nf3+ 24. Kh1 Nxe1 25. Qxe1 Qd6) 23. b5 {[%emt 0:00:09]} Qd7 {[%emt 0:00:08]} 24. Ba3 {[%emt 0:00:01]} Rfd8 {[%emt 0:00:01]} (24... Rxc1 {simplifies} 25. Rxc1 Rc8 26. Rxc8+ Nxc8 27. Qd1 Qf7) 25. Rc5 {[%emt 0:00:13]} b6 {[%emt 0:00:07]} 26. Rcc1 {[%emt 0:00:01]} Nf7 {[%emt 0:00:13]} 27. Bh3 {[%emt 0:00:05]} Ng5 {[%emt 0:00:03]} 28. Bg2 {[%emt 0:00:16]} Bf6 {[%emt 0:00:18][%cal Bg7f6,Bf6e7,Be7d6][%mdl 32]} 29. Re2 {[%emt 0:00:12]} (29. h4 $5 {[%cal Rh4g5]} Nf7 30. Bh3 $14) 29... Rxc1+ {[%emt 0:00:12] The position is equal.} 30. Bxc1 {[%emt 0:00:01]} Rc8 {[%emt 0:00:09]} 31. Rc2 {[%emt 0:00:01]} Be7 {[%emt 0:00:07]} 32. Rc3 {[%emt 0:00:07]} Kg7 {[%emt 0:00:12]} 33. Qc2 {[%emt 0:00:01]} Rxc3 {[%emt 0:00:04]} 34. Qxc3 {[%emt 0:00:01]} Bd6 {[%emt 0:00:12]} 35. h4 {[%emt 0:00:06]} Nf7 {[%emt 0:00:02]} 36. Bh3 {[%emt 0:00:03]} Kf6 {[%emt 0:00:13]} 37. Bd2 {[%emt 0:00:19]} Qc7 {[%emt 0:00:02]} 38. Qxc7 {[%emt 0:00:07]} Bxc7 $11 {[%emt 0:00:01][%mdl 4096] Endgame KBB-KBN} 39. Bb4 {[%emt 0:00:01]} Bd6 {[%emt 0:00:08]} 40. Bc3 {[%emt 0:00:01]} Ba3 {[%emt 0:00:08]} 41. Kf1 {[%emt 0:00:02]} Nd6 {[%emt 0:00:01]} 42. Ke2 {[%emt 0:00:11]} Nc4 {[%emt 0:00:02]} 43. Kd1 {[%emt 0:00:06]} Bd6 {[%emt 0:00:09]} 44. Kc2 {[%emt 0:00:03]} h6 {[%emt 0:00:03]} 45. Bf1 {[%emt 0:00:01]} Na3+ {[%emt 0:00:02] Weighted Error Value: White=0.27 (precise) /Black=0.27 (precise)} (45... Be7 $11) 1-0

[Event "Romanian Team Blitz Open 2022"]
[Site "Sebes"]
[Date "2022.12.04"]
[Round "4.31"]
[White "Popescu, Alexandru-Mihai"]
[Black "Craciun, Ovidiu"]
[Result "0-1"]
[ECO "C47"]
[WhiteElo "1634"]
[BlackElo "1857"]
[Annotator "NA RC COMBH"]
[PlyCount "82"]
[EventDate "2022.12.04"]
[EventType "blitz"]
[EventCountry "ROU"]
[SourceTitle "playchess.com"]
[Source "ChessBase"]
[SourceQuality "1"]
[TimeControl "180+2"]

1. e4 {[%emt 0:00:00]} e5 {[%emt 0:00:01]} 2. Nf3 {[%emt 0:00:01]} Nc6 {[%emt 0:00:02]} 3. d4 {[%emt 0:00:01]} exd4 4. Nxd4 {[%emt 0:00:00]} Nf6 {[%emt 0:00:02]} 5. Nc3 {[%emt 0:00:01]} Bb4 {[%emt 0:00:07]} 6. Nxc6 {[%emt 0:00:01]} bxc6 {[%emt 0:00:03]} 7. Bd3 {[%emt 0:00:01]} d5 {[%emt 0:00:04]} 8. exd5 {[%emt 0:00:01]} cxd5 {[%emt 0:00:01]} 9. O-O {[%emt 0:00:01]} O-O {[%emt 0:00:02]} 10. Bg5 {[%emt 0:00:05]} c6 {[%emt 0:00:14]} 11. h3 {[%emt 0:00:02]} h6 {[%emt 0:00:09]} 12. Bh4 {[%emt 0:00:01]} Bxc3 {[%emt 0:00:19]} 13. bxc3 {[%emt 0:00:01]} Qd6 {[%emt 0:00:01]} 14. Qf3 {[%emt 0:00:04]} Nh7 {[%emt 0:00:49]} 15. Rfe1 {[%emt 0:00:13]} Be6 {[%emt 0:00:01]} 16. Rab1 {[%emt 0:00:15]} Qc5 {[%emt 0:00:03]} 17. Qe3 {[%emt 0:01:29]} Qxe3 {[%emt 0:00:02]} 18. Rxe3 {[%emt 0:00:01]} Rab8 {[%emt 0:00:02]} 19. Rb3 {[%emt 0:00:12]} d4 {[%emt 0:00:12]} 20. Rxb8 {[%emt 0:00:01]} Rxb8 {[%emt 0:00:01]} 21. cxd4 {[%emt 0:00:02]} Bxa2 {[%emt 0:00:11]} 22. Kh2 {[%emt 0:00:07]} Be6 {[%emt 0:00:03]} 23. f4 {[%emt 0:00:03]} a5 {[%emt 0:00:05]} 24. f5 {[%emt 0:00:02]} Bd7 {[%emt 0:00:20]} 25. Re7 {[%emt 0:00:21]} Nf8 {[%emt 0:00:01]} 26. g4 {[%emt 0:00:08]} a4 {[%emt 0:00:02]} 27. Bc4 {[%emt 0:00:01]} Rb4 {[%emt 0:00:23]} 28. Bxf7+ {[%emt 0:00:03]} Kh8 {[%emt 0:00:38]} 29. c3 {[%emt 0:00:42]} Rb2+ {[%emt 0:00:00]} 30. Kg3 {[%emt 0:00:00]} a3 {[%emt 0:00:00]} 31. Re1 {[%emt 0:00:00]} a2 {[%emt 0:00:00]} 32. Ra1 {[%emt 0:00:00]} Rc2 {[%emt 0:00:00]} 33. Rxa2 {[%emt 0:00:00]} Rxc3+ {[%emt 0:00:00]} 34. Kg2 {[%emt 0:00:00]} c5 {[%emt 0:00:00]} 35. Ra8 {[%emt 0:00:00]} Bc6+ {[%emt 0:00:00]} 36. d5 {[%emt 0:00:00]} Bxa8 {[%emt 0:00:00]} 37. Be7 {[%emt 0:00:00]} Nh7 {[%emt 0:00:01]} 38. Be6 {[%emt 0:00:00]} Ng5 {[%emt 0:00:02]} 39. h4 {[%emt 0:00:00]} Nxe6 {[%emt 0:00:02]} 40. fxe6 {[%emt 0:00:00]} Bxd5+ {[%emt 0:00:02]} 41. Kf2 {[%emt 0:00:00]} Bxe6 {[%emt 0:00:19]} 0-1

[Event "Romanian Team Blitz Open 2022"]
[Site "Sebes"]
[Date "2022.12.04"]
[Round "4.32"]
[White "Stefan, Iulia-Cristiana"]
[Black "Dragut, Stefan-Cristian"]
[Result "1-0"]
[ECO "C02"]
[WhiteElo "1662"]
[BlackElo "1217"]
[Annotator "NA RC COMBH"]
[PlyCount "99"]
[EventDate "2022.12.04"]
[EventType "blitz"]
[EventCountry "ROU"]
[SourceTitle "playchess.com"]
[Source "ChessBase"]
[SourceQuality "1"]
[TimeControl "180+2"]

1. e4 {[%emt 0:00:01]} e6 {[%emt 0:00:00]} 2. d4 {[%emt 0:00:01]} d5 {[%emt 0:00:01]} 3. e5 {[%emt 0:00:01]} c5 {[%emt 0:00:00]} 4. c3 {[%emt 0:00:00]} Nc6 {[%emt 0:00:01]} 5. Nf3 {[%emt 0:00:02]} Qb6 {[%emt 0:00:01]} 6. Bd3 {[%emt 0:00:00]} Bd7 {[%emt 0:00:01]} 7. O-O {[%emt 0:00:03]} cxd4 {[%emt 0:00:01]} 8. Re1 {[%emt 0:00:01]} dxc3 {[%emt 0:00:05]} 9. Nxc3 {[%emt 0:00:02]} Bb4 {[%emt 0:00:01]} 10. a3 {[%emt 0:00:19]} Bxc3 {[%emt 0:00:02]} 11. bxc3 {[%emt 0:00:01]} Nge7 {[%emt 0:00:04]} 12. Rb1 {[%emt 0:00:04]} Qc7 {[%emt 0:00:00]} 13. Bf4 {[%emt 0:00:09]} O-O {[%emt 0:00:04]} 14. Bg3 {[%emt 0:00:15]} a6 {[%emt 0:00:02]} 15. Ng5 {[%emt 0:00:17]} h6 {[%emt 0:00:35]} 16. Nf3 {[%emt 0:00:05]} b5 {[%emt 0:00:04]} 17. Qd2 {[%emt 0:00:02]} Ng6 {[%emt 0:00:09]} 18. h4 {[%emt 0:00:08]} Nce7 {[%emt 0:00:54]} 19. h5 {[%emt 0:00:07]} Nh8 {[%emt 0:00:05]} 20. Bf4 {[%emt 0:00:07]} Nf5 {[%emt 0:00:14]} 21. g4 {[%emt 0:00:03]} Ne7 {[%emt 0:00:10]} 22. Bxh6 {[%emt 0:00:09]} Rfc8 {[%emt 0:00:18]} 23. Rbc1 {[%emt 0:00:08]} Kf8 {[%emt 0:00:13]} 24. Bxg7+ {[%emt 0:00:13]} Kxg7 {[%emt 0:00:03]} 25. Qg5+ {[%emt 0:00:04]} Kf8 {[%emt 0:00:07]} 26. Qh6+ {[%emt 0:00:08]} Ke8 {[%emt 0:00:02]} 27. Qxh8+ {[%emt 0:00:04]} Ng8 {[%emt 0:00:02]} 28. Qxg8+ {[%emt 0:00:03]} Ke7 {[%emt 0:00:00]} 29. Qg5+ {[%emt 0:00:05]} Ke8 {[%emt 0:00:02]} 30. h6 {[%emt 0:00:04]} Bc6 {[%emt 0:00:06]} 31. Qf6 {[%emt 0:00:07]} Qe7 {[%emt 0:00:04]} 32. h7 {[%emt 0:00:27]} Qxf6 {[%emt 0:00:07]} 33. exf6 {[%emt 0:00:02]} Kd7 {[%emt 0:00:01]} 34. Ne5+ {[%emt 0:00:03]} Kc7 {[%emt 0:00:04]} 35. Nxf7 {[%emt 0:00:07]} Rf8 {[%emt 0:00:03]} 36. h8=Q {[%emt 0:00:07]} Rxh8 {[%emt 0:00:01]} 37. Nxh8 {[%emt 0:00:01]} Rxh8 {[%emt 0:00:02]} 38. f3 {[%emt 0:00:08]} Rf8 {[%emt 0:00:03]} 39. g5 {[%emt 0:00:03]} Rg8 {[%emt 0:00:02]} 40. f4 {[%emt 0:00:02]} Be8 {[%emt 0:00:01]} 41. Kf2 {[%emt 0:00:01]} Kd7 {[%emt 0:00:04]} 42. Rh1 {[%emt 0:00:03]} Bg6 {[%emt 0:00:03]} 43. Bxg6 {[%emt 0:00:03]} Rxg6 {[%emt 0:00:02]} 44. Rh7+ {[%emt 0:00:01]} Ke8 {[%emt 0:00:02]} 45. Re7+ {[%emt 0:00:04]} Kf8 {[%emt 0:00:01]} 46. Rxe6 {[%emt 0:00:01]} Kf7 {[%emt 0:00:01]} 47. Re7+ {[%emt 0:00:01]} Kf8 {[%emt 0:00:00]} 48. Rce1 {[%emt 0:00:01]} Kg8 {[%emt 0:00:15]} 49. Re8+ {[%emt 0:00:04]} Kh7 {[%emt 0:00:01]} 50. R1e7+ {[%emt 0:00:02]} 1-0

[Event "Romanian Team Blitz Open 2022"]
[Site "Sebes"]
[Date "2022.12.04"]
[Round "5.1"]
[White "Szabo, Gergely-Andras-Gyula"]
[Black "Lupulescu, Constantin"]
[Result "1/2-1/2"]
[ECO "B22"]
[WhiteElo "2514"]
[BlackElo "2591"]
[Annotator "TA"]
[PlyCount "50"]
[EventDate "2022.12.04"]
[EventType "blitz"]
[EventCountry "ROU"]
[SourceTitle "playchess.com"]
[Source "ChessBase"]
[SourceQuality "1"]
[TimeControl "180+2"]

{[%evp 13,50,0,0,0,10,6,4,7,17,10,10,14,16,11,18,10,12,15,12,16,20,-12,-9,-10,-17,-36,0,-13,0,0,0,0,0,0,0,0,0,0,0]} 1. e4 {[%emt 0:00:01]} c5 {[%emt 0:00:02]} 2. c3 {[%emt 0:00:02]} d5 {[%emt 0:00:08]} 3. exd5 {[%emt 0:00:01]} Qxd5 {[%emt 0:00:01]} 4. d4 {[%emt 0:00:01]} Nf6 {[%emt 0:00:03]} 5. Nf3 {[%emt 0:00:02]} e6 {[%emt 0:00:01]} 6. Be3 {[%emt 0:00:05]} cxd4 {[%emt 0:00:27]} 7. cxd4 {[%emt 0:00:01]} Bb4+ {[%emt 0:00:17]} 8. Nc3 {[%emt 0:00:01] B22: Sicilian: 2 c3.} O-O {[%emt 0:00:02]} 9. Bd3 {[%emt 0:00:02]} b6 {[%emt 0:00:02]} 10. O-O {[%emt 0:00:06]} Bxc3 {[%emt 0:00:02]} 11. bxc3 {[%emt 0:00:02][%cal Bb2c3,Bc3c4][%mdl 32]} Ba6 {[%emt 0:00:01] Against c4} 12. Bxa6 {[%emt 0:00:16]} Nxa6 {[%emt 0:00:02]} 13. Ne5 {[%emt 0:00:01]} Nb8 {[%emt 0:00:20]} 14. c4 {[%emt 0:00:03]} Qb7 {[%emt 0:00:07]} 15. a4 {[%emt 0:00:07][%cal Ba2a4,Ba4a5][%mdl 32] [#]} Nbd7 $146 {[%emt 0:00:07]} ({Predecessor:} 15... Nc6 16. Qf3 Rfc8 17. Rfb1 Qc7 18. Nxc6 Qxc6 19. a5 Qxf3 20. gxf3 bxa5 21. c5 Nd5 22. Rxa5 {½-½ (44) Korneev,O (2609)-Potkin,V (2665) Nakhchivan 2013}) 16. Nxd7 {[%emt 0:00:15]} Qxd7 {[%emt 0:00:06]} 17. a5 {[%emt 0:00:01]} b5 {[%emt 0:00:02]} 18. cxb5 {[%emt 0:00:27]} Qxb5 {[%emt 0:00:01]} 19. a6 {[%emt 0:00:11]} Nd5 {[%emt 0:00:08]} (19... Rab8 {simplifies} 20. Qb1 Nd5 21. Qxb5 Rxb5 22. Bc1 Rd8) 20. Qg4 {[%emt 0:00:07] [#] And now Bh6 would win. The position is equal.} Nxe3 {[%emt 0:00:12]} 21. fxe3 {[%emt 0:00:01]} Rab8 {[%emt 0:00:01]} 22. Qe4 {[%emt 0:00:13]} Qe2 {[%emt 0:00:44]} 23. Rfe1 {[%emt 0:00:04]} Qd2 {[%emt 0:00:05]} 24. Red1 {[%emt 0:00:02]} Qe2 {[%emt 0:00:00]} 25. Re1 {[%emt 0:00:01]} Qd2 {[%emt 0:00:01] An even fight not without its subleties.   Weighted Error Value: White=0.05 (flawless) /Black=0.04 (flawless)} 1/2-1/2

[Event "Romanian Team Blitz Open 2022"]
[Site "Sebes"]
[Date "2022.12.04"]
[Round "5.3"]
[White "Stoleriu, George"]
[Black "Parligras, Mircea-Emilian"]
[Result "1/2-1/2"]
[ECO "C65"]
[WhiteElo "2389"]
[BlackElo "2567"]
[Annotator "TA"]
[PlyCount "91"]
[EventDate "2022.12.04"]
[EventType "blitz"]
[EventCountry "ROU"]
[SourceTitle "playchess.com"]
[Source "ChessBase"]
[SourceQuality "1"]
[TimeControl "180+2"]

{[%evp 10,91,59,86,80,77,77,81,82,70,67,72,79,59,60,57,73,53,58,46,47,53,73,78,104,81,83,96,94,77,77,76,77,56,64,60,78,67,69,56,51,41,45,43,52,50,56,14,11,1,1,1,1,1,41,42,62,34,52,54,83,70,96,28,39,11,10,13,19,10,86,87,120,9,68,9,123,0,0,0,0,0,0,0]} 1. e4 {[%emt 0:00:01]} e5 {[%emt 0:00:02]} 2. Nf3 {[%emt 0:00:01]} Nc6 {[%emt 0:00:01]} 3. Bb5 {[%emt 0:00:01]} Nf6 {[%emt 0:00:01]} 4. d3 {[%emt 0:00:01]} Bc5 {[%emt 0:00:02]} 5. O-O {[%emt 0:00:03]} O-O {[%emt 0:00:02]} 6. Bxc6 {[%emt 0:00:09]} bxc6 {[%emt 0:00:14] Nowadays more popular than 6...dxc6. C65: Ruy Lopez: Berlin Defence (3...Nf6), unusual lines and 4 0-0 Bc5.} 7. Nxe5 {[%emt 0:00:01]} Re8 {[%emt 0:00:01]} 8. Nf3 {[%emt 0:00:03]} d5 {[%emt 0:00:01] White is better.} 9. e5 {[%emt 0:00:03] [#] aiming for d4.} Nd7 $1 {[%emt 0:00:11][%cal Bf6d7,Bd7f8,Bf8e6][%mdl 32]} 10. d4 {[%emt 0:00:01]} Be7 {[%emt 0:00:17] [#]} 11. Re1 $146 {[%emt 0:00:04]} ({Predecessor:} 11. Nc3 Bb7 12. Ne2 c5 13. Re1 cxd4 14. Nexd4 Nf8 15. Nf5 c5 16. Bf4 Ne6 17. Bg3 {1-0 (29) Vergara,D-Sanchez,J ICCF email 2015}) 11... Nf8 {[%emt 0:00:04]} 12. Nc3 {[%emt 0:00:15]} Bg4 {[%emt 0:00:04]} 13. Qd3 {[%emt 0:00:13]} Ne6 {[%emt 0:00:09]} 14. Ne2 {[%emt 0:00:01]} c5 {[%emt 0:00:06]} 15. c3 {[%emt 0:00:02]} cxd4 {[%emt 0:00:03]} 16. Nfxd4 {[%emt 0:00:14]} Qd7 {[%emt 0:00:12] Inhibits Nc6.} 17. Nxe6 {[%emt 0:00:03]} fxe6 {[%emt 0:00:10]} 18. Ng3 {[%emt 0:00:06]} Rf8 {[%emt 0:00:02]} 19. h3 {[%emt 0:00:14]} Bf5 {[%emt 0:00:01]} 20. Nxf5 {[%emt 0:00:23]} Rxf5 {[%emt 0:00:01]} 21. Qg3 {[%emt 0:00:02]} (21. f4 {simplifies} Rff8 22. b3 c5 23. c4) 21... Bc5 {[%emt 0:00:13]} 22. Be3 {[%emt 0:00:04]} Bxe3 {[%emt 0:00:04]} 23. Qxe3 {[%emt 0:00:01]} Qb5 {[%emt 0:00:11]} 24. Qe2 {[%emt 0:00:09]} Qb6 {[%emt 0:00:03]} 25. Rab1 {[%emt 0:00:27]} Raf8 {[%emt 0:00:02][%cal Rf5f2]} 26. Rf1 {[%emt 0:00:00]} c5 {[%emt 0:00:10]} 27. Qe3 {[%emt 0:00:05]} d4 {[%emt 0:00:17]} 28. cxd4 {[%emt 0:00:01]} (28. Qe2 {simplifies} Qb8 29. Rbe1 Rd8 30. cxd4 cxd4 31. f4) 28... cxd4 {[%emt 0:00:01]} 29. Qe4 {[%emt 0:00:01]} (29. Qg3 {simplifies} Rd8 30. b3 Qa5 31. f4) 29... d3 {[%emt 0:00:15]} 30. Qxd3 {[%emt 0:00:02] next Qe2 is good for White.} Rxf2 {[%emt 0:00:02]} 31. Rxf2 {[%emt 0:00:02]} Qxf2+ $11 {[%emt 0:00:03][%mdl 4096] Endgame KQR-KQR} 32. Kh1 {[%emt 0:00:01]} h6 {[%emt 0:00:08]} 33. Qd6 {[%emt 0:00:15]} Qf5 {[%emt 0:00:09]} 34. Rc1 {[%emt 0:00:01]} Kh8 {[%emt 0:00:09]} 35. b4 {[%emt 0:00:10] White is more active.} Rf7 {[%emt 0:00:15]} 36. Rd1 {[%emt 0:00:09]} (36. a4 $16) 36... Qc2 {[%emt 0:00:15]} 37. Qd8+ {[%emt 0:00:05]} Kh7 {[%emt 0:00:01]} 38. Qd3+ {[%emt 0:00:01]} Qxd3 {[%emt 0:00:01]} 39. Rxd3 {[%emt 0:00:02] KR-KR} Rf1+ {[%emt 0:00:02]} (39... Rb7 $11) 40. Kh2 $16 {[%emt 0:00:00]} Re1 {[%emt 0:00:09] [#]} 41. Rd7 {[%emt 0:00:01]} (41. Rd6 $1 $16 {[%cal Rd6e6]}) 41... a5 $11 {[%emt 0:00:01]} 42. b5 {[%emt 0:00:29]} ({White should try} 42. bxa5 $14 Rxe5 43. a6) 42... Rxe5 {[%emt 0:00:01]} (42... Re2 $11) 43. a4 {[%emt 0:00:05]} (43. b6 $16) 43... Re4 $1 {[%emt 0:00:01] The position is equal.} 44. Re7 {[%emt 0:00:00]} Rxa4 {[%emt 0:00:02]} 45. Rxe6 {[%emt 0:00:01]} Rb4 {[%emt 0:00:01]} 46. Rb6 {[%emt 0:00:04] Weighted Error Value: White=0.20 (precise) /Black=0.16 (very precise)} 1/2-1/2